fUSD/lending_fUSD_20251113
["ID","MTS","AMOUNT","RATE_DAILY","PERIOD"]
[393832643,1763023873431,-500.0,0.00038356,20]
[393832644,1763023873441,-500.0,0.00038356,20]
[393832645,1763023873450,-500.0,0.00038356,20]
[393832646,1763023873460,-500.0,0.00038356,20]
[393832647,1763023873469,-500.0,0.00038356,20]
[393832648,1763023873479,-536.70947726,0.00038356,20]
[393832649,1763023873489,-500.0,0.00038356,20]
[393832650,1763023873498,-500.0,0.00038356,20]
[393832651,1763023873507,-500.0,0.00038356,20]
[393832652,1763023873517,-500.0,0.00038356,20]
[393832653,1763023873527,-500.0,0.00038356,20]
[393832654,1763023873536,-500.0,0.00038356,20]
[393832655,1763023873546,-500.0,0.00038356,20]
[393832656,1763023873556,-500.0,0.00038356,20]
[393832657,1763023873566,-500.0,0.00038356,20]
[393832658,1763023873576,-500.0,0.00038356,20]
[393832659,1763023873586,-500.0,0.00038356,20]
[393832660,1763023873595,-500.0,0.00038356,20]
[393832661,1763023873605,-500.0,0.00038356,20]
[393832662,1763023873615,-500.0,0.00038356,20]
[393832663,1763023873625,-500.0,0.00038356,20]
[393832664,1763023873635,-500.0,0.00038356,20]
[393832665,1763023873645,-500.0,0.00038356,20]
[393832666,1763023873654,-500.0,0.00038356,20]
[393832667,1763023873664,-500.0,0.00038356,20]
[393832668,1763023873672,-500.0,0.00038356,20]
[393832669,1763023873683,-500.0,0.00038356,20]
[393832670,1763023873693,-500.0,0.00038356,20]
[393832671,1763023873703,-500.0,0.00038356,20]
[393832672,1763023873713,-500.0,0.00038356,20]
[393832673,1763023873722,-500.0,0.00038356,20]
[393832674,1763023873733,-500.0,0.00038356,20]
[393832675,1763023873743,-500.0,0.00038356,20]
[393832676,1763023873753,-500.0,0.00038356,20]
[393832677,1763023873762,-500.0,0.00038356,20]
[393832678,1763023873771,-294.61602602,0.00038356,20]
[393832679,1763023873781,-309.99819248,0.00038356,20]
[393832680,1763023873791,-500.0,0.00038356,20]
[393832681,1763023873801,-500.0,0.00038356,20]
[393832682,1763023873811,-500.0,0.00038356,20]
[393832683,1763023873820,-500.0,0.00038356,20]
[393832684,1763023873830,-500.0,0.00038356,20]
[393832685,1763023873839,-500.0,0.00038356,20]
[393832686,1763023873849,-500.0,0.00038356,2]
[393832687,1763023873858,-500.0,0.00038356,2]
[393832688,1763023873868,-500.0,0.00038356,2]
[393832689,1763023873878,-500.0,0.00038356,2]
[393832690,1763023873887,-500.0,0.00038356,2]
[393832691,1763023873896,-500.0,0.00038356,2]
[393832692,1763023873906,-505.30911437,0.00038356,20]
[393832693,1763023873916,-500.0,0.00038356,2]
[393832694,1763023873926,-500.0,0.00038356,2]
[393832695,1763023873935,-500.0,0.00038356,2]
[393832696,1763023873946,-500.0,0.00038356,2]
[393832697,1763023873956,-500.0,0.00038356,2]
[393832698,1763023873966,-500.0,0.00038356,2]
[393832699,1763023873975,-500.0,0.00038356,2]
[393832700,1763023873985,-521.78226545,0.00038356,20]
[393832701,1763023873995,-500.0,0.00038356,2]
[393832702,1763023874011,-608.60054673,0.00038356,2]
[393832703,1763023874021,-500.0,0.00038356,20]
[393832704,1763023874030,-500.0,0.00038356,20]
[393832705,1763023874040,-500.0,0.00038356,20]
[393832706,1763023874052,-500.0,0.00038356,2]
[393832707,1763023874061,-500.0,0.00038356,20]
[393832708,1763023874071,-500.0,0.00038356,2]
[393832709,1763023874083,-500.0,0.00038356,2]
[393832710,1763023874091,-500.0,0.00038356,2]
[393832711,1763023874101,-500.0,0.00038356,2]
[393832712,1763023874110,-500.0,0.00038356,30]
[393832713,1763023874120,-593.94747728,0.00038373,5]
[393832714,1763023874130,-502.14268274,0.00038373,5]
[393832715,1763023874140,-500.0,0.00038373,5]
[393832716,1763023874149,-500.0,0.00038373,5]
[393832717,1763023874159,-500.0,0.00038373,5]
[393832718,1763023874169,-1365.08,0.000384,14]
[393832719,1763023874178,-1038.06,0.000384,30]
[393832720,1763023874188,-198.0,0.00038415,120]
[393832721,1763023874197,-179.38,0.0003863,2]
[393832722,1763023874207,-500.0,0.0003863,4]
[393832723,1763023874216,-980.05,0.0003863,4]
[393832724,1763023874225,-500.0,0.0003863,30]
[393832725,1763023874234,-198.0,0.00038711,2]
[393832726,1763023874244,-177.74,0.000388,14]
[393832727,1763023874253,-195.95,0.000388,30]
[393832728,1763023874262,-198.0,0.00038816,7]
[393832729,1763023874271,-5188.62303962,0.00038838,2]
[393832730,1763023874280,-173.24,0.00038864,60]
[393832731,1763023874289,-1000.0,0.00038904,120]
[393832732,1763023874298,-1000.0,0.00038904,120]
[393832733,1763023874308,-1000.0,0.00038904,120]
[393832734,1763023874317,-500.0,0.00038904,120]
[393832735,1763023874327,-500.0,0.00038904,4]
[393832736,1763023874336,-980.05,0.00038904,4]
[393832737,1763023874346,-500.0,0.00038904,30]
[393832738,1763023874356,-1000.0,0.00038921,5]
[393832739,1763023874365,-158.13465146,0.00038921,5]
[393832740,1763023874375,-198.0,0.00038951,7]
[393832741,1763023874384,-500.0,0.00038966,20]
[393832742,1763023874394,-500.0,0.00038966,20]
[393832743,1763023874404,-500.0,0.00038966,20]
[393832744,1763023874413,-500.0,0.00038966,20]
[393832745,1763023874423,-500.0,0.00038966,20]
[393832746,1763023874432,-500.0,0.00038966,20]
[393832747,1763023874442,-500.0,0.00038966,20]
[393832748,1763023874451,-500.0,0.00038966,20]
[393832749,1763023874461,-500.0,0.00038966,20]
[393832750,1763023874471,-500.0,0.00038966,20]
[393832751,1763023874480,-506.03733701,0.00038966,20]
[393832752,1763023874490,-500.0,0.00038966,20]
[393832753,1763023874499,-500.0,0.00038966,20]
[393832754,1763023874509,-500.0,0.00038966,20]
[393832755,1763023874519,-500.0,0.00038966,20]
[393832756,1763023874528,-500.0,0.00038966,20]
[393832757,1763023874538,-500.0,0.00038966,20]
[393832758,1763023874548,-500.0,0.00038966,20]
[393832759,1763023874557,-500.0,0.00038966,20]
[393832760,1763023874565,-500.0,0.00038966,20]
[393832761,1763023874573,-500.0,0.00038966,20]
[393832762,1763023874581,-500.0,0.00038966,20]
[393832763,1763023874589,-500.0,0.00038966,20]
[393832764,1763023874598,-500.0,0.00038966,20]
[393832765,1763023874606,-500.0,0.00038966,20]
[393832766,1763023874614,-500.77961132,0.00038966,20]
[393832767,1763023874623,-503.26682726,0.00038966,20]
[393832768,1763023874633,-500.73090455,0.00038966,20]
[393832769,1763023874642,-500.0,0.00038966,20]
[393832770,1763023874652,-500.0,0.00038966,2]
[393832771,1763023874661,-245.73295508,0.00038967,2]
[393832772,1763023874671,-292.9863923,0.00038967,2]
[393832773,1763023874680,-500.0,0.00038967,20]
[393832774,1763023874690,-500.0,0.00038967,20]
[393832775,1763023874700,-500.0,0.00038967,20]
[393832776,1763023874709,-500.0,0.00038967,20]
[393832777,1763023874718,-500.0,0.00038967,20]
[393832778,1763023874729,-500.0,0.00038967,20]
[393832779,1763023874739,-500.0,0.00038967,20]
[393832780,1763023874749,-500.0,0.00038967,20]
[393832781,1763023874761,-500.0,0.00038967,20]
[393832782,1763023874773,-507.66020252,0.00038967,20]
[393832783,1763023874782,-500.0,0.00038967,20]
[393832784,1763023874792,-500.0,0.00038967,20]
[393832785,1763023874802,-500.0,0.00038967,20]
[393832786,1763023874811,-500.44606773,0.00038967,20]
[393832787,1763023874820,-500.0,0.00038967,20]
[393832788,1763023874830,-500.0,0.00038967,20]
[393832789,1763023874839,-500.0,0.00038967,20]
[393832790,1763023874849,-500.0,0.00038967,20]
[393832791,1763023874858,-500.0,0.00038967,20]
[393832792,1763023874868,-500.0,0.00038967,20]
[393832793,1763023874877,-500.0,0.00038967,20]
[393832794,1763023874886,-500.0,0.00038967,20]
[393832795,1763023874896,-500.0,0.00038967,20]
[393832796,1763023874906,-500.0,0.00038967,20]
[393832797,1763023874916,-500.0,0.00038967,20]
[393832798,1763023874926,-500.0,0.00038967,20]
[393832799,1763023874935,-500.0,0.00038967,20]
[393832800,1763023874945,-500.0,0.00038967,20]
[393832801,1763023874955,-500.0,0.00038967,20]
[393832802,1763023874964,-500.0,0.00038967,20]
[393832803,1763023874973,-500.0,0.00038967,20]
[393832804,1763023874983,-500.0,0.00038967,20]
[393832805,1763023874993,-500.0,0.00038967,20]
[393832806,1763023875006,-500.0,0.00038967,20]
[393832807,1763023875016,-500.0,0.00038967,20]
[393832808,1763023875026,-500.0,0.00038967,20]
[393832809,1763023875036,-500.0,0.00038967,20]
[393832810,1763023875046,-500.0,0.00038967,20]
[393832811,1763023875055,-500.0,0.00038967,20]
[393832812,1763023875065,-500.0,0.00038967,20]
[393832813,1763023875076,-155.0,0.00039,20]
[393832814,1763023875085,-155.0,0.00039,15]
[393832815,1763023875095,-5060.61263944,0.00039,60]
[393832816,1763023875105,-500.0,0.00039038,53]
[393832817,1763023875115,-198.0,0.00039046,2]
[393832818,1763023875124,-500.0,0.00039055,20]
[393832819,1763023875134,-500.0,0.00039063,20]
[393832820,1763023875143,-500.0,0.00039063,20]
[393832821,1763023875153,-500.0,0.00039063,20]
[393832822,1763023875163,-500.0,0.00039063,20]
[393832823,1763023875172,-500.0,0.00039063,20]
[393832824,1763023875182,-500.0,0.00039063,20]
[393832825,1763023875195,-500.0,0.00039063,20]
[393832826,1763023875204,-500.0,0.00039063,20]
[393832827,1763023875214,-500.0,0.00039063,20]
[393832828,1763023875225,-500.0,0.00039063,20]
[393832829,1763023875235,-500.0,0.00039063,20]
[393832830,1763023875245,-500.0,0.00039063,20]
[393832831,1763023875255,-500.0,0.00039063,20]
[393832832,1763023875264,-500.0,0.00039063,20]
[393832833,1763023875274,-500.0,0.00039064,20]
[393832834,1763023875283,-500.0,0.00039069,7]
[393832835,1763023875293,-500.0,0.00039069,7]
[393832836,1763023875303,-500.0,0.00039073,5]
[393832837,1763023875312,-500.0,0.00039073,5]
[393832838,1763023875321,-1019.20832636,0.00039073,5]
[393832839,1763023875331,-500.0,0.00039074,20]
[393832840,1763023875341,-575.91726758,0.00039074,20]
[393832841,1763023875351,-500.0,0.00039074,20]
[393832842,1763023875361,-500.0,0.00039074,20]
[393832843,1763023875371,-500.0,0.00039074,20]
[393832844,1763023875382,-500.0,0.00039074,20]
[393832845,1763023875393,-500.0,0.00039074,20]
[393832846,1763023875403,-500.0,0.00039074,20]
[393832847,1763023875412,-500.0,0.00039074,20]
[393832848,1763023875422,-500.0,0.00039074,20]
[393832849,1763023875431,-500.0,0.00039074,20]
[393832850,1763023875441,-500.0,0.00039074,20]
[393832851,1763023875450,-500.0,0.00039074,20]
[393832852,1763023875460,-500.0,0.00039074,20]
[393832853,1763023875470,-532.37073322,0.00039075,20]
[393832854,1763023875480,-500.0,0.00039076,20]
[393832855,1763023875491,-500.0,0.00039076,20]
[393832856,1763023875500,-500.0,0.00039076,20]
[393832857,1763023875510,-500.0,0.00039076,20]
[393832858,1763023875519,-500.0,0.00039076,20]
[393832859,1763023875529,-500.0,0.00039076,20]
[393832860,1763023875539,-502.66592749,0.00039076,20]
[393832861,1763023875548,-500.0,0.00039076,20]
[393832862,1763023875558,-500.0,0.00039076,20]
[393832863,1763023875613,-500.0,0.00039076,20]
[393832864,1763023875623,-198.0,0.00039124,2]
[393832865,1763023875633,-2048.0,0.00039159,120]
[393832866,1763023875644,-500.0,0.00039178,4]
[393832867,1763023875653,-980.05,0.00039178,4]
[393832868,1763023875662,-500.0,0.00039178,30]
[393832869,1763023875672,-1000.0,0.00039182,2]
[393832870,1763023875681,-150.0,0.00039191,120]
[393832871,1763023875691,-1365.08,0.000392,14]
[393832872,1763023875700,-1038.06,0.000392,30]
[393832873,1763023875710,-173.24,0.00039217,60]
[393832874,1763023875720,-198.0,0.00039291,2]
[393832875,1763023875730,-198.0,0.00039297,2]
[393832876,1763023875739,-198.0,0.00039311,2]
[393832877,1763023875749,-417.0,0.00039318,2]
[393832878,1763023875759,-700.0,0.00039433,30]
[393832879,1763023875768,-500.0,0.00039452,4]
[393832880,1763023875778,-980.05,0.00039452,4]
[393832881,1763023875789,-500.0,0.00039452,30]
[393832882,1763023875798,-517.85474684,0.00039468,5]
[393832883,1763023875808,-417.0,0.00039507,2]
[393832884,1763023875817,-198.0,0.0003952,2]
[393832885,1763023875826,-1000.0,0.00039533,7]
[393832886,1763023875836,-150.0,0.00039534,7]
[393832887,1763023875845,-1000.0,0.00039551,7]
[393832888,1763023875854,-150.0,0.00039552,7]
[393832889,1763023875864,-150.0,0.00039562,7]
[393832890,1763023875874,-173.24,0.00039571,60]
[393832891,1763023875882,-1000.0,0.00039582,7]
[393832892,1763023875892,-150.0,0.00039599,7]
[393832893,1763023875900,-177.74,0.000396,14]
[393832894,1763023875909,-195.95,0.000396,30]
[393832895,1763023875919,-150.0,0.00039605,7]
[393832896,1763023875928,-1000.0,0.0003961,7]
[393832897,1763023875938,-569.20872666,0.00039621,5]
[393832898,1763023875947,-2048.0,0.00039623,2]
[393832899,1763023875957,-1000.0,0.00039634,7]
[393832900,1763023875968,-1000.0,0.00039639,7]
[393832901,1763023875979,-1000.0,0.00039645,7]
[393832902,1763023875989,-391.14,0.00039654,2]
[393832903,1763023876000,-150.0,0.00039655,7]
[393832904,1763023876010,-150.0,0.00039656,7]
[393832905,1763023876019,-1000.0,0.00039656,7]
[393832906,1763023876028,-150.0,0.00039658,7]
[393832907,1763023876037,-1000.0,0.0003966,7]
[393832908,1763023876049,-1000.0,0.00039667,7]
[393832909,1763023876058,-1000.0,0.00039667,7]
[393832910,1763023876067,-198.0,0.00039681,7]
[393832911,1763023876078,-1000.0,0.0003969,7]
[393832912,1763023876087,-204.02750616,0.00039691,2]
[393832913,1763023876097,-1000.0,0.00039696,7]
[393832914,1763023876106,-150.0,0.00039698,7]
[393832915,1763023876115,-198.0,0.000397,2]
[393832916,1763023876124,-150.0,0.00039705,7]
[393832917,1763023876134,-150.0,0.00039708,7]
[393832918,1763023876144,-421.53,0.0003971,7]
[393832919,1763023876154,-500.0,0.0003971,7]
[393832920,1763023876163,-500.0,0.0003971,7]
[393832921,1763023876172,-500.0,0.0003971,7]
[393832922,1763023876181,-500.0,0.0003971,7]
[393832923,1763023876190,-500.0,0.0003971,7]
[393832924,1763023876199,-500.0,0.0003971,7]
[393832925,1763023876210,-500.0,0.0003971,7]
[393832926,1763023876219,-500.0,0.0003971,7]
[393832927,1763023876227,-500.0,0.0003971,7]
[393832928,1763023876236,-500.0,0.0003971,7]
[393832929,1763023876246,-500.0,0.0003971,7]
[393832930,1763023876255,-500.0,0.0003971,7]
[393832931,1763023876264,-500.0,0.0003971,7]
[393832932,1763023876273,-500.0,0.0003971,7]
[393832933,1763023876283,-500.0,0.0003971,7]
[393832934,1763023876292,-500.0,0.0003971,7]
[393832935,1763023876301,-500.0,0.0003971,7]
[393832936,1763023876311,-500.0,0.0003971,7]
[393832937,1763023876321,-500.0,0.0003971,7]
[393832938,1763023876330,-500.0,0.0003971,7]
[393832939,1763023876339,-500.0,0.0003971,7]
[393832940,1763023876349,-500.0,0.0003971,7]
[393832941,1763023876358,-500.0,0.0003971,7]
[393832942,1763023876367,-500.0,0.0003971,7]
[393832943,1763023876377,-500.0,0.0003971,7]
[393832944,1763023876386,-500.0,0.0003971,7]
[393832945,1763023876398,-500.0,0.0003971,7]
[393832946,1763023876407,-500.0,0.0003971,7]
[393832947,1763023876417,-500.0,0.0003971,7]
[393832948,1763023876428,-500.0,0.0003971,7]
[393832949,1763023876437,-500.0,0.0003971,7]
[393832950,1763023876447,-500.0,0.0003971,7]
[393832951,1763023876458,-500.0,0.0003971,7]
[393832952,1763023876468,-500.0,0.0003971,7]
[393832953,1763023876478,-500.0,0.0003971,7]
[393832954,1763023876487,-500.0,0.0003971,7]
[393832955,1763023876496,-500.0,0.0003971,7]
[393832956,1763023876505,-500.0,0.0003971,7]
[393832957,1763023876515,-500.0,0.0003971,7]
[393832958,1763023876524,-500.0,0.0003971,7]
[393832959,1763023876533,-500.0,0.0003971,7]
[393832960,1763023876542,-500.0,0.0003971,7]
[393832961,1763023876551,-500.0,0.0003971,7]
[393832962,1763023876561,-500.0,0.0003971,7]
[393832963,1763023876570,-500.0,0.0003971,7]
[393832964,1763023876579,-500.0,0.0003971,7]
[393832965,1763023876590,-500.0,0.0003971,7]
[393832966,1763023876600,-500.0,0.0003971,7]
[393832967,1763023876610,-500.0,0.0003971,7]
[393832968,1763023876619,-500.0,0.0003971,7]
[393832969,1763023876629,-500.0,0.0003971,7]
[393832970,1763023876638,-500.0,0.0003971,7]
[393832971,1763023876647,-500.0,0.0003971,7]
[393832972,1763023876656,-469.4,0.0003971,7]
[393832973,1763023876665,-150.0,0.00039712,7]
[393832974,1763023876674,-150.0,0.00039712,7]
[393832975,1763023876684,-1000.0,0.00039721,7]
[393832976,1763023876693,-150.0,0.00039725,7]
[393832977,1763023876703,-500.0,0.00039726,4]
[393832978,1763023876712,-980.05,0.00039726,4]
[393832979,1763023876721,-500.0,0.00039726,30]
[393832980,1763023876730,-1000.0,0.00039727,7]
[393832981,1763023876740,-150.0,0.00039729,7]
[393832982,1763023876749,-150.0,0.00039729,7]
[393832983,1763023876759,-150.0,0.00039731,7]
[393832984,1763023876768,-150.0,0.00039738,7]
[393832985,1763023876778,-150.0,0.00039739,7]
[393832986,1763023876787,-1000.0,0.00039742,7]
[393832987,1763023876797,-150.0,0.00039743,7]
[393832988,1763023876807,-150.0,0.00039745,7]
[393832989,1763023876817,-300.0,0.00039749,2]
[393832990,1763023876826,-150.0,0.00039749,7]
[393832991,1763023876835,-1000.0,0.0003975,7]
[393832992,1763023876844,-1000.0,0.00039751,7]
[393832993,1763023876853,-1000.0,0.00039753,7]
[393832994,1763023876864,-1000.0,0.00039754,7]
[393832995,1763023876875,-300.0,0.00039755,2]
[393832996,1763023876885,-150.0,0.00039755,7]
[393832997,1763023876894,-1000.0,0.00039755,7]
[393832998,1763023876903,-150.0,0.00039756,7]
[393832999,1763023876912,-150.0,0.00039762,7]
[393833000,1763023876921,-213.08309978,0.00039767,7]
[393833001,1763023876931,-1000.0,0.00039775,7]
[393833002,1763023876939,-1000.0,0.00039776,7]
[393833003,1763023876949,-1000.0,0.00039778,7]
[393833004,1763023876958,-1000.0,0.00039781,7]
[393833005,1763023876968,-150.0,0.00039786,7]
[393833006,1763023876977,-1000.0,0.00039794,7]
[393833007,1763023876987,-1000.0,0.00039797,7]
[393833008,1763023876998,-1017.59,0.00039798,30]
[393833009,1763023877010,-150.0,0.00039799,7]
[393833010,1763023877021,-150.0,0.000398,7]
[393833011,1763023877030,-1000.0,0.00039801,7]
[393833012,1763023877039,-1000.0,0.00039804,7]
[393833013,1763023877049,-1000.0,0.00039805,7]
[393833014,1763023877058,-150.0,0.00039807,7]
[393833015,1763023877069,-1000.0,0.00039809,7]
[393833016,1763023877082,-150.0,0.00039817,7]
[393833017,1763023877092,-700.23,0.00039827,20]
[393833018,1763023877102,-500.0,0.00039827,20]
[393833019,1763023877113,-500.0,0.00039827,20]
[393833020,1763023877124,-1000.0,0.00039828,7]
[393833021,1763023877134,-300.0,0.00039837,2]
[393833022,1763023877143,-1000.0,0.00039837,7]
[393833023,1763023877153,-1000.0,0.00039839,7]
[393833024,1763023877163,-1000.0,0.00039841,7]
[393833025,1763023877174,-1000.0,0.00039853,7]
[393833026,1763023877184,-1000.0,0.00039859,7]
[393833027,1763023877194,-300.0,0.00039863,2]
[393833028,1763023877204,-150.0,0.00039868,7]
[393833029,1763023877213,-300.0,0.00039869,2]
[393833030,1763023877223,-150.0,0.00039869,7]
[393833031,1763023877233,-1000.0,0.00039869,7]
[393833032,1763023877243,-150.0,0.00039874,7]
[393833033,1763023877253,-1000.0,0.00039874,7]
[393833034,1763023877263,-1000.0,0.00039879,7]
[393833035,1763023877274,-150.0,0.00039882,7]
[393833036,1763023877290,-150.0,0.00039885,7]
[393833037,1763023877303,-152.72367594,0.00039888,7]
[393833038,1763023877314,-1000.0,0.00039892,7]
[393833039,1763023877323,-1000.0,0.00039893,7]
[393833040,1763023877332,-150.0,0.00039897,7]
[393833041,1763023877342,-150.0,0.00039897,7]
[393833042,1763023877351,-1365.08,0.000399,14]
[393833043,1763023877361,-1038.06,0.000399,30]
[393833044,1763023877371,-18749.999999,0.000399,120]
[393833045,1763023877380,-1000.0,0.00039906,7]
[393833046,1763023877390,-150.0,0.00039914,7]
[393833047,1763023877400,-500.0,0.0003992,53]
[393833048,1763023877409,-150.0,0.00039924,7]
[393833049,1763023877419,-173.24,0.00039924,60]
[393833050,1763023877429,-1000.0,0.00039945,7]
[393833051,1763023877440,-150.0,0.00039948,7]
[393833052,1763023877451,-1000.0,0.00039954,7]
[393833053,1763023877461,-500.0,0.00039958,20]
[393833054,1763023877471,-500.0,0.00039958,20]
[393833055,1763023877481,-500.0,0.00039958,20]
[393833056,1763023877491,-500.0,0.00039958,20]
[393833057,1763023877500,-500.0,0.00039958,20]
[393833058,1763023877510,-500.0,0.00039958,20]
[393833059,1763023877520,-500.0,0.00039958,20]
[393833060,1763023877529,-500.0,0.00039958,20]
[393833061,1763023877538,-1000.0,0.00039958,7]
[393833062,1763023877547,-1000.0,0.00039958,7]
[393833063,1763023877557,-1000.0,0.00039962,7]
[393833064,1763023877566,-150.0,0.00039965,7]
[393833065,1763023877576,-1000.0,0.00039966,7]
[393833066,1763023877585,-1000.0,0.00039969,7]
[393833067,1763023877594,-150.0,0.0003997,7]
[393833068,1763023877604,-150.0,0.00039971,7]
[393833069,1763023877613,-1041.6684853,0.00039973,7]
[393833070,1763023877622,-481.212,0.00039995,56]
[393833071,1763023877632,-500.0,0.00039999,31]
[393833072,1763023877641,-500.0,0.00039999,31]
[393833073,1763023877651,-500.0,0.00039999,31]
[393833074,1763023877660,-500.0,0.00039999,31]
[393833075,1763023877670,-500.0,0.00039999,31]
[393833076,1763023877680,-500.0,0.00039999,31]
[393833077,1763023877689,-483.72346183,0.00039999,31]
[393833078,1763023877699,-500.0,0.00039999,31]
[393833079,1763023877709,-500.0,0.00039999,31]
[393833080,1763023877719,-500.0,0.0004,30]
[393833081,1763023877729,-185.17169704,0.0004,20]
[393833082,1763023877738,-1000.0,0.0004,2]
[393833083,1763023877747,-1000.0,0.0004,120]
[393833084,1763023877756,-200.0,0.0004,120]
[393833085,1763023877766,-500.0,0.0004,4]
[393833086,1763023877776,-1010.0,0.0004,7]
[393833087,1763023877787,-980.05,0.0004,4]
[393833088,1763023877797,-500.0,0.00040002,20]
[393833089,1763023877806,-500.0,0.00040002,20]
[393833090,1763023877816,-500.0,0.00040002,20]
[393833091,1763023877826,-500.0,0.00040002,20]
[393833092,1763023877835,-500.0,0.00040002,20]
[393833093,1763023877845,-500.0,0.00040002,20]
[393833094,1763023877854,-153.04,0.00040111,120]
[393833095,1763023877864,-2048.0,0.00040132,7]
[393833096,1763023877874,-325.0,0.00040137,120]
[393833097,1763023877885,-500.0,0.0004017,20]
[393833098,1763023877895,-500.0,0.0004017,20]
[393833099,1763023877904,-500.0,0.0004017,20]
[393833100,1763023877914,-500.0,0.0004017,20]
[393833101,1763023877923,-500.0,0.0004017,20]
[393833102,1763023877933,-500.0,0.0004017,20]
[393833103,1763023877943,-700.23,0.0004017,20]
[393833104,1763023877952,-500.0,0.0004017,20]
[393833105,1763023877963,-500.0,0.0004017,20]
[393833106,1763023877973,-500.0,0.0004017,20]
[393833107,1763023877983,-500.0,0.0004017,20]
[393833108,1763023877997,-500.0,0.0004017,2]
[393833109,1763023878010,-500.0,0.0004017,2]
[393833110,1763023878020,-249219.68309262,0.00040171,120]
[393833111,1763023878030,-179.38,0.00040182,14]
[393833112,1763023878040,-22463.95,0.000402,14]
[393833113,1763023878051,-500.0,0.00040269,20]
[393833114,1763023878060,-500.0,0.00040269,20]
[393833115,1763023878070,-500.0,0.00040269,20]
[393833116,1763023878082,-500.0,0.00040269,20]
[393833117,1763023878092,-500.0,0.00040269,20]
[393833118,1763023878102,-500.0,0.00040273,30]
[393833119,1763023878111,-500.0,0.00040273,30]
[393833120,1763023878121,-449.8603102,0.00040273,30]
[393833121,1763023878130,-500.0,0.00040273,30]
[393833122,1763023878140,-500.0,0.00040273,30]
[393833123,1763023878149,-500.0,0.00040273,30]
[393833124,1763023878158,-184.931835,0.00040273,20]
[393833125,1763023878168,-184.931835,0.00040273,20]
[393833126,1763023878177,-169.850852,0.00040273,20]
[393833127,1763023878186,-164.171914,0.00040273,20]
[393833128,1763023878196,-184.931835,0.00040273,20]
[393833129,1763023878206,-184.931835,0.00040273,20]
[393833130,1763023878216,-164.171914,0.00040273,20]
[393833131,1763023878226,-164.171914,0.00040273,20]
[393833132,1763023878236,-169.850852,0.00040273,20]
[393833133,1763023878245,-169.850852,0.00040273,20]
[393833134,1763023878255,-159.990501,0.00040273,20]
[393833135,1763023878265,-153.421574,0.00040273,20]
[393833136,1763023878275,-153.421574,0.00040273,20]
[393833137,1763023878284,-153.163045,0.00040273,20]
[393833138,1763023878293,-157.071855,0.00040273,20]
[393833139,1763023878303,-157.071855,0.00040273,20]
[393833140,1763023878312,-157.071855,0.00040273,20]
[393833141,1763023878323,-500.0,0.00040273,4]
[393833142,1763023878332,-980.05,0.00040273,4]